bitfinex-derivatives/quotes_ETHF0:USTF0_20251216
["timestamp","ask_amount","ask_price","bid_price","bid_amount"]
[1765858518974,4.36415333,2926.6,2926.5,1.1454]
[1765858519379,4.36415333,2926.6,2926.5,1.8517]
[1765858519872,3.61035333,2926.6,2926.5,1.8517]
[1765858520473,4.36415333,2926.6,2926.5,1.8517]
[1765858520969,2.86875333,2926.6,2926.5,1.8517]
[1765858523572,0.0029122,2926.6,2926.5,1.8517]
[1765858524669,0.7445122,2926.6,2926.5,1.8517]
[1765858525264,0.0029122,2926.6,2926.5,1.8517]
[1765858525670,1.4983122,2926.6,2926.5,1.8517]
[1765858525871,0.7445122,2926.6,2926.5,1.8517]
[1765858526273,0.0029122,2926.6,2926.5,1.8517]
[1765858528473,0.0029122,2926.6,2926.5,4.2017]
[1765858528679,1.22e-05,2926.6,2926.5,4.2017]
[1765858528977,1.22e-05,2926.6,2926.5,4.4417]
[1765858529772,1.22e-05,2926.6,2926.5,0.4295]
[1765858530167,1.22e-05,2926.6,2926.5,41.2295]
[1765858530372,1.22e-05,2926.6,2926.5,0.4295]
[1765858532176,1.4612122,2926.6,2926.5,1.9886]
[1765858532376,1.4612122,2926.6,2926.5,42.7886]
[1765858533070,1.4744,2926.5,2926.4,4.6968]
[1765858533282,1.4744,2926.5,2926.4,3.2078]
[1765858534287,1.4744,2926.5,2926.4,4.6968]
[1765858534483,1.4744,2926.5,2926.4,3.2078]
[1765858534785,1.4744,2926.5,2926.4,3.918]
[1765858535384,1.4744,2926.5,2926.4,3.2078]
[1765858535572,1.22e-05,2926.6,2926.1,3.2078]
[1765858535779,1.4744,2926.2,2926.1,3.918]
[1765858536079,1.4744,2926.2,2926.0,0.43306041]
[1765858536284,1.4744,2926.1,2926.0,0.00356041]
[1765858538483,1.4744,2925.9,2925.5,0.4295]
[1765858538679,1.4744,2925.6,2925.5,0.4295]
[1765858539487,1.4744,2925.6,2925.5,0.43383227]
[1765858539887,1.4744,2925.6,2925.5,0.00433227]
[1765858540075,1.4744,2925.4,2925.3,0.71532636]
[1765858540275,4.6822,2925.4,2925.3,0.71532636]
[1765858540477,3.9737,2925.4,2925.3,1.49412636]
[1765858540980,3.9737,2925.4,2925.3,1.49848985]
[1765858541190,3.2078,2925.4,2925.3,1.49848985]
[1765858542588,4.6822,2925.7,2925.6,1.489]
[1765858543187,3.2078,2925.7,2925.6,1.489]
[1765858543485,4.6822,2926.1,2926.0,1.1394]
[1765858543682,4.6822,2926.1,2926.0,1.9182]
[1765858543885,3.2078,2926.1,2926.0,1.9182]
[1765858544291,1.0115898,2926.5,2926.0,1.9182]
[1765858544292,3.2078,2926.5,2926.0,1.9182]
[1765858544487,1.22e-05,2926.6,2926.5,0.4292]
[1765858544884,0.7659122,2926.6,2926.5,1.9182]
[1765858545486,1.22e-05,2926.6,2926.5,0.4292]
[1765858545890,1.22e-05,2926.6,2926.5,2.8092]
[1765858546391,1.22e-05,2926.6,2926.5,0.4292]
[1765858546895,1.22e-05,2926.6,2926.5,3.1892]
[1765858547989,1.22e-05,2926.6,2926.5,0.4292]
[1765858548191,1.22e-05,2926.6,2926.5,3.0592]
[1765858548794,1.22e-05,2926.6,2926.5,0.4292]
[1765858550896,0.7659122,2926.6,2926.5,1.9182]
[1765858551097,1.22e-05,2926.6,2926.5,1.208]
[1765858551500,1.22e-05,2926.6,2926.5,10.30866213]
[1765858551701,1.22e-05,2926.6,2926.5,1.1092]
[1765858552997,1.22e-05,2926.6,2926.5,2.7492]
[1765858553601,1.22e-05,2926.6,2926.5,1.1892]
[1765858556005,1.22e-05,2926.6,2926.5,41.9892]
[1765858558203,1.22e-05,2926.6,2926.5,43.5992]
[1765858561408,3.2078,2927.3,2927.2,1.489]
[1765858561602,3.2078,2927.3,2927.0,0.4292]
[1765858561603,4.6822,2927.7,2927.6,0.7102]
[1765858562405,4.68529516,2927.7,2927.6,1.49302008]
[1765858562901,3.97679516,2927.7,2927.6,1.49302008]
[1765858563407,4.75629516,2927.7,2927.6,0.00402008]
[1765858563902,4.75629516,2927.7,2927.6,0.78372008]
[1765858566500,4.75629516,2927.7,2927.6,1.49082008]
[1765858568514,4.75629516,2927.7,2927.6,0.00402008]
[1765858569003,4.75629516,2927.7,2927.6,0.78372008]
[1765858569613,4.75629516,2927.7,2927.6,1.49082008]
[1765858570010,3.21089516,2927.7,2927.6,1.49082008]
[1765858570206,0.00309516,2927.7,2927.6,4.05082008]
[1765858570512,3.2078,2928.3,2928.2,1.4868]
[1765858571119,3.986,2928.3,2928.2,1.4868]
[1765858571309,4.76835146,2928.3,2928.2,1.4868]
[1765858571617,3.98885146,2928.3,2928.2,1.4868]
[1765858572913,4.76835146,2928.3,2928.2,1.4868]
[1765858573112,1.5577,2928.2,2928.1,40.8]
[1765858573513,1.5577,2928.1,2928.0,1.9383]
[1765858574007,1.5577,2928.1,2928.0,42.7383]
[1765858574008,0.7782,2928.1,2928.0,42.7383]
[1765858576316,4.76835146,2928.3,2928.2,1.4868]
[1765858576715,1.5577,2928.1,2928.0,41.2515]
[1765858577821,1.5577,2928.1,2928.0,1.9383]
[1765858579120,1.5577,2928.1,2928.0,1.2312]
[1765858579425,1.5577,2928.1,2928.0,1.9383]
[1765858581227,1.5577,2928.1,2928.0,1.2312]
[1765858581425,1.5577,2927.8,2927.7,40.8]
[1765858581622,1.5577,2927.7,2927.6,0.78372008]
[1765858581825,1.5577,2927.7,2927.6,1e-08]
[1765858583232,1.5577,2927.1,2927.0,5.1238]
[1765858584431,1.5577,2927.1,2927.0,3.6394097]
[1765858584826,1.5577,2927.1,2927.0,5.1262097]
[1765858586128,1.5577,2927.1,2927.0,3.6394097]
[1765858586533,1.5577,2927.1,2927.0,0.0024097]
[1765858586734,4.7655,2927.1,2927.0,0.0024097]
[1765858590835,4.7655,2927.1,2927.0,1.9407097]
[1765858591832,3.986,2927.1,2927.0,1.9407097]
[1765858592332,4.7371,2927.1,2927.0,1.9407097]
[1765858592527,3.986,2927.1,2927.0,1.9407097]
[1765858592724,3.9362,2927.4,2927.3,1.5037]
[1765858592927,3.2078,2927.4,2927.3,1.5037]
[1765858594132,3.2078,2927.7,2927.6,1.5037]
[1765858594544,3.9362,2927.7,2927.6,1.5037]
[1765858594730,1.4795,2927.6,2927.5,1.1621]
[1765858594934,1.4795,2927.6,2927.5,0.4233]
[1765858595338,1.4795,2927.6,2927.0,0.4539097]
[1765858595947,0.7284,2927.2,2927.1,40.8]
[1765858596737,1.4795,2927.2,2927.1,40.8]
[1765858596940,0.7284,2927.1,2927.0,1.9576097]
[1765858597145,1.4795,2927.1,2927.0,1.9576097]
[1765858598635,1.4795,2927.1,2927.0,0.4539097]
[1765858598831,1.4795,2927.1,2927.0,0.0024097]
[1765858599037,4.6873,2927.1,2927.0,0.0024097]
[1765858599744,4.6873,2927.1,2927.0,0.00130341]
[1765858599945,1.4795,2926.6,2926.0,3.6593]
[1765858600342,1.4795,2926.6,2926.1,40.8]
[1765858600640,1.4795,2926.2,2926.1,0.7388]
[1765858600841,3.2078,2926.7,2926.1,1.7037]
[1765858601036,0.00288437,2926.2,2926.1,1.71211356]
[1765858604445,3.94132636,2926.7,2926.6,1.5037]
[1765858604652,4.69242636,2926.7,2926.6,1.5037]
[1765858605048,3.94132636,2926.7,2926.6,1.5037]
[1765858605354,3.21546774,2926.7,2926.6,1.5037]
[1765858605558,0.00766774,2926.7,2926.6,1.5037]
[1765858605944,3.2078,2927.0,2926.9,1.5037]
[1765858606555,3.9362,2927.0,2926.9,1.5037]
[1765858606749,3.2078,2927.0,2926.9,1.5037]
[1765858607056,3.21218701,2927.0,2926.9,1.5037]
[1765858612354,0.00438701,2927.0,2926.9,1.5037]
[1765858615754,0.00438701,2927.0,2926.9,3.8137]
[1765858616163,4.6873,2927.9,2927.8,1.5037]
[1765858616659,3.9362,2928.2,2928.1,1.5037]
[1765858617161,0.0039436,2928.2,2928.1,1.5037]
[1765858619250,0.00512636,2928.4,2928.3,1.5037]
[1765858620259,0.00922207,2928.4,2928.3,1.50757461]
[1765858622067,2.207e-05,2928.4,2928.3,1.50757461]
[1765858623371,2.207e-05,2928.4,2928.3,8.4789197]
[1765858623561,2.207e-05,2928.4,2928.3,5.8489197]
[1765858623962,2.207e-05,2928.4,2928.3,46.6489197]
[1765858624365,2.207e-05,2928.4,2928.3,42.30757461]
[1765858624564,0.73662207,2928.4,2928.3,42.30757461]
[1765858625668,0.73662207,2928.4,2928.3,1.50757461]
[1765858628573,1.50942207,2928.4,2928.3,0.74267461]
[1765858628772,0.73662207,2928.4,2928.3,1.48857461]
[1765858629173,2.207e-05,2928.4,2928.3,0.00387461]
[1765858629573,0.73662207,2928.4,2928.3,1.52407461]
[1765858629775,3.94442207,2928.4,2928.3,1.52407461]
[1765858631276,4.71722207,2928.4,2928.3,0.00387461]
[1765858634073,4.71722207,2928.4,2928.3,0.77817461]
[1765858634465,3.94442207,2928.4,2928.3,1.52407461]
[1765858634665,3.20782207,2928.4,2928.3,1.52407461]
[1765858634979,3.94442207,2928.4,2928.3,1.52407461]
[1765858635177,4.71722207,2928.4,2928.3,1.52407461]
[1765858635473,4.71722207,2928.4,2928.3,0.77817461]
[1765858635664,4.71722207,2928.4,2928.3,0.00387461]
[1765858635870,4.71722207,2928.4,2928.3,0.77817461]
[1765858636264,4.71722207,2928.4,2928.3,1.52407461]
[1765858637479,4.71722207,2928.4,2928.3,0.77817461]
[1765858639678,4.71722207,2928.4,2928.3,0.00387461]
[1765858643185,4.71722207,2928.4,2928.3,0.77817461]
[1765858643582,2.207e-05,2928.4,2928.3,0.00387461]
[1765858643776,0.00512636,2928.6,2928.5,1.9677]
[1765858643981,3.2078,2929.1,2929.0,1.9677]
[1765858644879,3.21211965,2929.1,2929.0,1.9677]
[1765858645674,3.94871965,2929.1,2929.0,1.9677]
[1765858645877,4.72151965,2929.1,2929.0,1.9677]
[1765858646275,4.72151965,2929.1,2928.5,16.3905]
[1765858646587,0.7366,2928.6,2928.5,17.9107]
[1765858646885,0.7366,2928.6,2928.5,58.7107]
[1765858647086,3.21211965,2929.1,2928.5,58.7107]
[1765858648283,0.7366,2928.6,2928.5,58.7107]
[1765858648686,3.21211965,2929.1,2928.5,58.7107]
[1765858649387,4.72151965,2929.1,2929.0,1.9677]
[1765858649788,4.72151965,2929.1,2929.0,0.4475]
[1765858649995,4.72151965,2929.1,2928.5,57.1905]
[1765858652290,3.2078,2928.6,2928.5,57.1905]
[1765858653190,4.7066,2928.6,2928.5,17.9337]
[1765858653594,3.9315,2928.6,2928.5,17.9337]
[1765858655190,0.7237,2928.6,2928.5,17.9337]
[1765858655386,4.7066,2928.9,2928.8,0.7784]
[1765858655591,0.7237,2928.6,2928.5,17.1689]
[1765858655792,3.9315,2928.9,2928.8,1.5432]
[1765858656188,4.7066,2928.9,2928.8,1.5432]
[1765858657094,4.7066,2928.9,2928.8,0.7784]
[1765858657486,4.7066,2928.9,2928.8,1.5432]
[1765858657994,4.7066,2928.9,2928.8,0.7784]
[1765858659099,1.4988,2928.9,2928.8,0.7784]
[1765858659300,4.7066,2928.9,2928.8,0.7784]
[1765858659598,4.7066,2928.9,2928.8,1.5432]
[1765858661896,3.9315,2928.9,2928.8,1.5432]
[1765858662298,0.7237,2928.6,2928.5,17.9337]
[1765858662694,4.7066,2928.9,2928.8,1.5432]
[1765858663091,4.7066,2928.9,2928.8,0.7784]
[1765858664004,1.4988,2928.9,2928.8,0.7784]
[1765858664304,4.7066,2928.9,2928.8,0.7784]
[1765858665204,0.7237,2928.6,2928.5,17.1689]
[1765858665393,0.7237,2928.6,2928.5,17.9337]
[1765858665802,0.7237,2928.6,2928.5,58.7337]
[1765858665998,4.7066,2928.9,2928.8,0.7784]
[1765858666603,1.4988,2928.6,2928.5,16.3905]
[1765858666806,1.4988,2928.6,2928.3,0.00387461]
[1765858666807,1.4988,2928.4,2928.3,0.00387461]
[1765858668307,1.4988,2928.4,2927.9,0.00512636]
[1765858668308,1.4988,2928.0,2927.9,0.00512636]
[1765858668606,6.24589437,2928.0,2927.9,0.00512636]
[1765858669213,3.9315,2928.0,2927.9,1.55180311]
[1765858669616,4.7066,2928.0,2927.9,1.55180311]
[1765858670111,4.7066,2928.0,2927.9,0.78700311]
[1765858670704,4.7066,2928.0,2927.9,0.00860311]
[1765858671414,4.7066,2928.0,2927.9,0.78700311]
[1765858671811,4.7066,2928.3,2928.2,0.7784]
[1765858672012,1.4988,2928.0,2927.9,0.00860311]
[1765858672211,6.24589437,2928.0,2927.9,0.00860311]
[1765858675015,3.2078,2928.0,2927.9,1.55180311]
[1765858675314,4.7066,2928.0,2927.9,0.00860311]
[1765858675516,4.9723,2928.0,2927.9,0.00860311]
[1765858676915,4.7066,2928.0,2927.9,0.00860311]
[1765858677319,4.7066,2928.0,2927.9,0.78700311]
[1765858677527,3.2078,2928.0,2927.9,1.55180311]
[1765858677818,4.7066,2928.0,2927.9,1.55180311]
[1765858678112,4.7066,2928.0,2927.9,0.78700311]
[1765858678715,4.7066,2928.0,2927.9,0.00860311]
[1765858682220,4.7066,2928.0,2927.9,0.73280311]
[1765858682414,4.7066,2928.0,2927.9,1.46610311]
[1765858682721,3.9315,2928.0,2927.9,1.46610311]
[1765858683114,4.6711,2928.0,2927.9,1.46610311]
[1765858683918,4.6711,2928.0,2927.9,0.73280311]
[1765858684316,4.6711,2928.0,2927.9,0.00860311]
[1765858684715,1.4862,2927.1,2927.0,0.4475]
[1765858684915,1.4862,2926.6,2926.5,1.9213]
[1765858685217,4.74709437,2927.1,2926.5,3.0913]
[1765858685414,1.4862,2926.6,2926.5,3.0913]
[1765858685619,0.750966,2926.6,2926.5,3.09512799]
[1765858686414,0.004366,2926.6,2926.5,3.09512799]
[1765858687122,0.00512636,2926.8,2926.7,1.4575]
[1765858688317,0.00899234,2926.8,2926.7,1.4575]
[1765858688622,1.49519234,2926.8,2926.7,0.7242]
[1765858689014,0.7466,2926.6,2926.5,1.92512799]
[1765858689212,1.4862,2926.6,2926.5,2.04512799]
[1765858689614,0.7466,2926.6,2926.5,2.04512799]
[1765858691116,3.9544,2926.6,2926.5,2.04512799]
[1765858692320,0.00899234,2926.8,2926.7,1.4575]
[1765858692321,1.49519234,2926.8,2926.7,1.4575]
[1765858692625,0.75559234,2926.8,2926.7,1.4575]
[1765858693024,0.00899234,2926.8,2926.7,1.4575]
[1765858693528,0.75559234,2926.8,2926.7,1.4575]
[1765858693736,0.00899234,2926.8,2926.7,1.4575]
[1765858694817,0.75559234,2926.8,2926.7,1.4575]
[1765858696025,0.00899234,2926.8,2926.7,1.4575]
[1765858700434,0.75559234,2926.8,2926.7,1.4575]
[1765858700834,1.49519234,2926.8,2926.7,1.4575]
[1765858701034,1.49519234,2926.8,2926.7,0.7242]
[1765858701337,1.4862,2926.6,2926.5,1.92512799]
[1765858701529,1.4862,2926.6,2926.5,2.05512799]
[1765858702526,0.7466,2926.6,2926.5,2.05512799]
[1765858703829,1.4862,2926.6,2926.5,2.05512799]
[1765858704734,0.7466,2926.6,2926.5,2.05512799]
[1765858704934,0.75559234,2926.8,2926.7,1.4575]
[1765858705334,0.00899234,2926.8,2926.7,1.4575]
[1765858706238,0.75559234,2926.8,2926.7,1.4575]
[1765858707942,0.00899234,2926.8,2926.7,1.4575]
[1765858713452,0.78119234,2926.8,2926.7,1.4575]
[1765858714352,0.00899234,2926.8,2926.7,1.4575]
[1765858717055,0.00899234,2926.8,2926.7,2.99866891]
[1765858717656,3.2078,2927.3,2927.2,1.415]
[1765858717960,3.2078,2927.3,2927.2,2.95616891]
[1765858718657,3.21155912,2927.3,2927.2,2.95616891]
[1765858719657,0.00375912,2927.3,2927.2,2.95616891]
[1765858719860,0.00375912,2927.3,2927.2,43.75616891]
[1765858720756,0.00375912,2927.3,2927.2,46.57616891]
[1765858720957,0.00375912,2927.3,2927.2,43.75616891]
[1765858723165,0.00375912,2927.3,2927.2,46.54616891]
[1765858723558,0.00375912,2927.3,2927.2,43.75616891]
[1765858725259,0.00375912,2927.3,2927.2,46.56616891]
[1765858725462,0.00375912,2927.3,2927.2,43.75616891]
[1765858726658,0.00375912,2927.3,2927.2,46.27616891]
[1765858726970,0.00375912,2927.3,2927.2,43.75616891]
[1765858727173,0.00375912,2927.3,2927.2,46.16616891]
[1765858728076,0.00375912,2927.3,2927.2,43.75616891]
[1765858728572,3.98375912,2927.3,2927.2,42.215]
[1765858728967,4.75005912,2927.3,2927.2,42.215]
[1765858729162,4.75005912,2927.3,2927.2,1.415]
[1765858729375,1.5385,2927.1,2927.0,1.8744]
[1765858729669,1.5385,2927.1,2927.0,0.4594]
[1765858730067,3.07966891,2927.1,2927.0,0.4594]
[1765858730371,1.5385,2926.9,2926.8,12.0221]
[1765858730571,1.5385,2926.9,2926.8,12.733]
[1765858732067,1.5385,2926.9,2926.8,1.415]
[1765858732373,1.5385,2926.9,2926.8,0.7041]
[1765858732673,1.5385,2926.7,2926.6,4.6228]
[1765858734373,0.7722,2926.7,2926.6,4.6228]
[1765858734576,1.54116891,2927.2,2926.6,4.6228]
[1765858735375,0.7722,2926.7,2926.6,4.6228]
[1765858737569,1.54116891,2926.9,2926.8,1.415]
[1765858737774,1.5385,2926.9,2926.8,1.415]
[1765858738778,4.7463,2926.9,2926.8,1.415]
[1765858740177,3.98,2926.9,2926.8,1.415]
[1765858740378,4.7463,2926.9,2926.8,1.415]
[1765858740579,3.98,2926.9,2926.8,1.415]
[1765858741577,3.21155912,2927.3,2927.2,1.415]
[1765858741774,0.00375912,2927.3,2927.2,2.95616891]
[1765858742586,0.00512636,2927.5,2927.4,1.4319]
[1765858742882,0.00512636,2927.5,2927.4,6.18086891]
[1765858743575,0.00766662,2927.5,2927.4,8.48086891]
[1765858743778,3.9782,2928.2,2928.1,1.4797]
[1765858743979,4.2439,2928.5,2928.4,1.4797]
[1765858744173,5.0224,2928.5,2928.4,1.4797]
[1765858744377,1.5489,2927.9,2927.8,40.8]
[1765858744672,1.55303322,2927.9,2927.8,40.8]
[1765858745974,1.5489,2927.8,2927.7,19.9007]
[1765858746388,1.5489,2927.8,2927.7,20.6285]
[1765858747582,0.7704,2927.8,2927.7,20.6285]
[1765858748385,0.77453322,2927.9,2927.8,1.4797]
[1765858748582,0.00413322,2927.9,2927.8,1.4797]
[1765858750678,0.77453322,2927.9,2927.8,1.4797]
[1765858751675,1.55303322,2927.9,2927.8,0.7519]
[1765858752186,1.5489,2927.8,2927.7,19.1488]
[1765858752388,1.5489,2927.8,2927.7,4.6875]
[1765858755483,0.77453322,2927.9,2927.8,1.4797]
[1765858755690,0.00413322,2927.9,2927.8,3.02086891]
[1765858760587,3.2078,2928.5,2928.4,1.4797]
[1765858760789,1.7612,2929.0,2928.9,1.4797]
[1765858761694,1.76364802,2929.0,2928.9,1.48283562]
[1765858761996,1.76364802,2929.0,2928.9,0.00313562]
[1765858768591,1.76364802,2929.0,2928.9,0.75503562]
[1765858768997,1.76364802,2929.0,2928.9,1.48283562]
[1765858769205,0.98514802,2929.0,2928.9,1.48283562]
[1765858769392,1.76364802,2929.0,2928.9,1.48283562]
[1765858769599,1.76364802,2929.0,2928.9,3.02400453]
[1765858769903,0.98514802,2929.0,2928.9,1.48283562]
[1765858770292,1.76364802,2929.0,2928.9,1.48283562]
[1765858773408,0.98514802,2929.0,2928.9,1.48283562]
[1765858773607,0.00244802,2929.0,2928.9,1.48283562]
[1765858774003,0.77544802,2929.0,2928.9,1.48283562]
[1765858774406,2.00714802,2929.0,2928.9,1.48283562]
[1765858775103,1.22764802,2929.0,2928.9,1.48283562]
[1765858778802,0.00244802,2929.0,2928.9,1.48283562]
[1765858779806,0.00244802,2929.0,2928.9,3.95283562]
[1765858780006,3.2078,2929.3,2929.2,1.5503]
[1765858780206,1.9788,2929.5,2929.4,1.5503]
[1765858780900,1.98260542,2929.5,2929.4,0.7727]
[1765858785708,1.98260542,2929.5,2929.4,1.5503]
[1765858790524,1.20310542,2929.5,2929.4,1.5503]
[1765858790914,1.98260542,2929.5,2929.4,1.5503]
[1765858792314,1.20310542,2929.5,2929.4,1.5503]
[1765858792520,1.98260542,2929.5,2929.4,1.5503]
[1765858792725,1.5525,2929.3,2929.2,0.00512636]
[1765858792913,4.7603,2929.3,2929.2,0.00512636]
[1765858793618,1.98260542,2929.5,2929.4,1.5503]
[1765858794619,1.98260542,2929.5,2929.4,0.7727]
[1765858795322,1.5525,2929.3,2929.2,0.77782636]
[1765858796123,1.5525,2929.3,2929.2,1.55542636]
[1765858797426,0.773,2929.3,2929.2,1.55542636]
[1765858798525,1.98260542,2929.5,2929.4,1.5503]
[1765858799225,1.98260542,2929.5,2929.4,0.7727]
[1765858799426,1.98260542,2929.5,2929.4,1.5503]
[1765858800622,0.00380542,2929.5,2929.4,3.08926149]
[1765858800824,5.1841,2930.0,2929.9,1.5503]
[1765858801128,4.4046,2930.0,2929.9,1.5503]
[1765858801326,4.7603,2930.3,2930.2,1.5503]
[1765858801532,1.1968,2930.5,2930.4,1.5503]
[1765858801825,3.2078,2930.6,2930.5,1.5503]
[1765858802029,3.21190322,2930.6,2930.5,3.08926149]
[1765858802227,0.00410322,2930.6,2930.5,3.52746149]
[1765858803229,1.46870322,2930.6,2930.5,1.5503]
[1765858804130,1.46870322,2930.6,2930.5,0.7727]
[1765858804332,4.67650322,2930.6,2930.5,0.7727]
[1765858805327,1.4646,2930.2,2930.1,40.8]
[1765858806223,1.4646,2930.2,2929.7,4.74676149]
[1765858806425,1.9272,2930.0,2929.9,1.5084]
[1765858806724,1.9272,2930.0,2929.9,42.3084]
[1765858807331,1.9272,2930.0,2929.9,1.5084]
[1765858807729,1.9272,2930.0,2929.9,0.7561]
[1765858808030,1.9272,2930.0,2929.9,1.5084]
[1765858808231,1.9272,2930.5,2930.4,1.5084]
[1765858808426,3.21190322,2930.6,2930.5,1.9466]
[1765858808626,0.00410322,2930.6,2930.5,5.1544]
[1765858812434,1.4646,2931.2,2931.1,1.5084]
[1765858813337,1.46766139,2931.2,2931.1,1.51112212]
[1765858816029,1.46766139,2931.2,2931.1,0.75882212]
[1765858817236,1.46766139,2931.2,2931.1,1.51112212]
[1765858818532,0.73856139,2931.2,2931.1,1.51112212]
[1765858818734,1.46766139,2931.2,2931.1,1.51112212]
[1765858819132,3.2078,2931.8,2931.1,4.71892212]
[1765858819338,4.6724,2931.8,2931.7,0.7561]
[1765858819842,4.6724,2931.8,2931.7,1.5084]
[1765858820336,0.73929395,2931.8,2931.7,1.5084]
[1765858820834,0.00379395,2931.8,2931.7,1.5084]
[1765858821237,1.46839395,2931.8,2931.7,1.5084]
[1765858821633,1.46839395,2931.8,2931.7,0.7561]
[1765858822030,1.46839395,2931.8,2931.7,1.5084]
[1765858823440,1.46839395,2931.8,2931.7,0.7561]
[1765858823635,0.7355,2931.5,2931.4,3.2078]
[1765858823836,1.9272,2931.5,2931.4,4.7162]
[1765858826645,0.73929395,2931.8,2931.7,1.5084]
[1765858827143,1.46839395,2931.8,2931.7,1.5084]
[1765858827843,0.00379395,2931.8,2931.7,1.5084]
[1765858828438,0.00379395,2931.8,2931.5,0.2974]
[1765858828439,1.4646,2931.2,2931.1,2.212e-05]
[1765858828647,1.4646,2930.1,2930.0,3.9639]
[1765858828839,3.2078,2930.4,2930.0,1.5084]
[1765858829039,3.2078,2930.4,2930.3,1.5084]
[1765858829439,3.9433,2930.4,2930.3,1.5084]
[1765858829645,4.6724,2930.4,2930.3,0.75941822]
[1765858829840,4.6724,2930.4,2930.3,0.00331822]
[1765858830642,4.6724,2930.4,2930.3,0.75941822]
[1765858830852,3.9433,2930.4,2930.3,1.51171822]
[1765858831147,0.00508771,2930.6,2930.5,1.5084]
[1765858831148,1.46968771,2930.6,2930.5,1.5084]
[1765858831446,1.4646,2930.4,2930.3,0.75941822]
[1765858831650,1.4646,2930.4,2930.3,0.00331822]
[1765858835947,1.4646,2930.4,2930.3,1.46971822]
[1765858837144,1.4646,2930.4,2930.3,0.00331822]
[1765858839255,0.7355,2930.4,2930.3,1.43541822]
[1765858839553,0.4507,2929.0,2928.2,9.30010151]
[1765858839849,3.9711,2928.6,2928.5,1.4321]
[1765858840649,4.7184936,2928.6,2928.5,1.43592741]
[1765858845250,4.7184936,2928.6,2928.5,0.72562741]
[1765858845456,4.7184936,2928.6,2928.5,1.43592741]
[1765858845958,4.7184936,2928.6,2928.5,0.72562741]
[1765858847362,4.7184936,2928.6,2928.5,0.00382741]
[1765858849059,3.9734936,2928.6,2928.5,1.43592741]
[1765858849259,4.7184936,2928.6,2928.5,1.43592741]
[1765858849665,1.959,2927.0,2926.9,0.7218]
[1765858849965,1.959,2927.0,2926.9,1.4321]
[1765858850162,1.959,2927.0,2926.9,0.7218]
[1765858850760,1.959,2927.0,2926.9,0.72614816]
[1765858850964,1.959,2927.0,2926.9,0.00434816]
[1765858851164,1.5083,2926.8,2926.7,0.00511745]
[1765858852162,1.5083,2926.8,2926.7,0.00754506]
[1765858853272,0.4507,2927.0,2926.0,3.2078]
[1765858853273,1.5083,2926.1,2926.0,3.2078]
[1765858853465,1.5083,2926.1,2926.0,6.2599]
[1765858854264,1.5114124,2926.1,2926.0,6.2637457]
[1765858855266,1.5114124,2926.1,2926.0,4.8316457]
[1765858855470,1.5114124,2926.1,2926.0,0.0038457]
[1765858856957,1.5083,2925.9,2925.8,0.00512636]
[1765858857160,1.5083,2925.3,2925.2,3.9296]
[1765858857664,1.5083,2925.3,2925.2,44.7296]
[1765858857866,1.5083,2925.3,2925.2,3.2078]
[1765858858057,1.5083,2925.3,2925.2,3.21088799]
[1765858859171,1.5083,2925.3,2925.2,3.93268799]
[1765858859356,1.5083,2925.3,2925.2,3.21088799]
[1765858859761,1.5083,2925.1,2925.0,0.00512636]
[1765858859965,0.4507,2925.0,2924.2,19.1648]
[1765858860169,1.5083,2924.3,2924.2,20.5969]
[1765858860370,1.5083,2924.3,2924.2,1.4321]
[1765858860672,1.5083,2924.3,2924.2,0.7218]
[1765858860868,3.9711,2924.4,2924.3,0.7218]
[1765858861172,3.9711,2924.4,2924.2,0.00359925]
[1765858861173,0.4507,2924.5,2924.4,1.4321]
[1765858861357,3.2078,2924.7,2924.6,1.4321]
[1765858861562,3.9711,2924.7,2924.6,1.4321]
[1765858861777,4.7161,2924.7,2924.6,1.4321]
[1765858861960,0.7633,2924.3,2924.2,1.43569925]
[1765858862275,0.4507,2924.5,2924.4,1.4351]
[1765858862475,3.2078,2924.7,2924.6,0.7688]
[1765858862770,4.7078,2924.7,2924.2,0.00359925]
[1765858864067,4.7078,2924.7,2924.6,0.7688]
[1765858864761,4.7078,2924.7,2924.2,0.00359925]
[1765858864964,4.7078,2924.7,2924.2,40.80359925]
[1765858865165,4.7078,2924.7,2924.6,0.7688]
[1765858865372,4.7078,2924.7,2924.6,1.4821]
[1765858865770,4.7078,2924.7,2924.6,0.7688]
[1765858866472,4.7078,2924.7,2924.6,1.4821]
[1765858868269,5.71284889,2924.7,2924.6,1.4821]
[1765858870165,4.21284889,2924.7,2924.6,1.4821]
[1765858870580,4.98864889,2924.7,2924.6,1.4821]
[1765858871078,5.71284889,2924.7,2924.6,1.4821]
[1765858871276,1.5,2924.3,2924.2,0.00359925]
[1765858871576,2.50504889,2924.3,2924.2,0.77239925]
[1765858872778,2.50504889,2924.3,2924.2,1.48569925]
[1765858872972,1.00504889,2924.3,2924.2,1.48569925]
[1765858873275,1.00504889,2924.3,2924.2,4.29569925]
[1765858874273,3.2078,2925.1,2925.0,1.7846]
[1765858874583,1.00905617,2925.1,2925.0,4.3046]
[1765858874774,0.45582636,2925.5,2925.0,4.3046]
[1765858874775,0.00512636,2925.5,2925.4,1.4821]
[1765858874973,0.99875229,2925.5,2925.4,3.9321]
[1765858875172,4.20655229,2925.5,2925.4,1.4821]
[1765858875378,4.67235229,2925.5,2925.0,1.4821]
[1765858875574,5.17872636,2925.5,2925.4,1.4821]
[1765858875777,5.43983089,2925.5,2925.4,1.4821]
[1765858876468,6.16403089,2925.5,2925.4,1.4821]
[1765858877777,6.16403089,2925.5,2925.4,0.7688]
[1765858878682,6.16403089,2925.5,2925.4,1.4821]
[1765858879078,6.16403089,2925.5,2925.4,3.9721]
[1765858879276,4.7854239,2925.5,2925.4,1.4821]
[1765858879479,2.23203089,2925.5,2925.4,1.4821]
[1765858879885,2.23203089,2925.5,2925.4,3.8321]
[1765858880081,0.7758,2925.1,2925.0,13.2241]
[1765858880281,1.76110453,2925.1,2925.0,15.5841]
[1765858880478,0.98530453,2925.1,2925.0,15.5841]
[1765858880674,0.98530453,2925.1,2925.0,1.4821]
[1765858880675,2.48530453,2925.1,2925.0,1.4821]
[1765858880882,2.48530453,2925.1,2925.0,0.7688]